Workbook

Sheet versie 1
A1: t0 = | B1: 0 | D1: random = | E1: =RAND() -> 0.9558825881 | F1: ampl | G1: v_x = | H1: =v_max*COS(E6) -> 6.922189236 | J1: t_max = | K1: =2*v_y0/g -> 0.8147865075 | M1: v_max | N1: v2 | O1: x_max
A2: dt = | B2: 0.01 | D2: kopie = | E2: 0.0925929229 | F2: 150 | G2: v_y0 = | H2: =v_max*SIN(E6) -> 3.996527819 | J2: x_max = | K2: =v_max^2*SIN(2*E6)/g -> 5.640106392 | M2: =v_max -> 7.993055638 | N2: =M2^2 -> 63.88893843 | O2: =K2 -> 5.640106392 | T2: r.c. = | U2: 0.0883
A3: g = | B3: 9.81 | D3: Energie = | E3: 0 | F3: offset | J3: y_max = | K3: =0.5*v_y0^2/g -> 0.8140792359 | T3: Energie = | U3: 63.889
D4: 2E/m = | E4: 63.88893843 | F4: 50 | M4: v_max | N4: v2 | O4: x_max | T4: Afstand = | U4: =U3*U2 -> 5.6413987
D5: v_max = | E5: =SQRT(E4) -> 7.993055638 | H5: schfblk = | I5: 56
A6: tijd | B6: x | C6: y | D6: hoek = | E6: =RADIANS(E7) -> 0.5235987756 | F6: rad | H6: x_bakje = | I6: =I5/10 -> 5.6 | U6: =IF(ABS(K2-I6)<0.2,"raak","mis") -> raak
A7: =t0 -> 0 | B7: =IF(-0.5*g*A7^2+v_y0*A7>0,v_x*A7,0) -> 0 | C7: =IF(-0.5*g*A7^2+v_y0*A7>0,-0.5*g*A7^2+v_y0*A7,0) -> 0 | E7: 30 | F7: º | H7: y_bakje = | I7: 0
A8: =A7+dt -> 0.01 | B8: =IF((-0.5*g*A8^2+v_y0*A8)>0,v_x*A8,x_max) -> 0.06922189236 | C8: 0.03947477819 | H8: bakje tekenen :
A9: 0.02 | B9: 0.1384437847 | C9: 0.07796855638 | H9: =H11-0.4 -> 5.2 | I9: 0.1
A10: 0.03 | B10: 0.2076656771 | C10: 0.1154813346 | H10: =H11-0.2 -> 5.4 | I10: 0
A11: 0.04 | B11: 0.2768875695 | C11: 0.1520131128 | H11: =I6 -> 5.6 | I11: 0
A12: 0.05 | B12: 0.3461094618 | C12: 0.187563891 | H12: =H11+0.2 -> 5.8 | I12: 0
A13: 0.06 | B13: 0.4153313542 | C13: 0.2221336691 | H13: =H11+0.4 -> 6 | I13: 0.1
A14: 0.07 | B14: 0.4845532466 | C14: 0.2557224473
A15: 0.08 | B15: 0.5537751389 | C15: 0.2883302255
A16: 0.09 | B16: 0.6229970313 | C16: 0.3199570037
A17: 0.1 | B17: 0.6922189236 | C17: 0.3506027819
A18: 0.11 | B18: 0.761440816 | C18: 0.3802675601
A19: 0.12 | B19: 0.8306627084 | C19: 0.4089513383
A20: 0.13 | B20: 0.8998846007 | C20: 0.4366541165
A21: 0.14 | B21: 0.9691064931 | C21: 0.4633758947
A22: 0.15 | B22: 1.038328385 | C22: 0.4891166729
A23: 0.16 | B23: 1.107550278 | C23: 0.5138764511
A24: 0.17 | B24: 1.17677217 | C24: 0.5376552292
A25: 0.18 | B25: 1.245994063 | C25: 0.5604530074
A26: 0.19 | B26: 1.315215955 | C26: 0.5822697856
A27: 0.2 | B27: 1.384437847 | C27: 0.6031055638
A28: 0.21 | B28: 1.45365974 | C28: 0.622960342
A29: 0.22 | B29: 1.522881632 | C29: 0.6418341202
A30: 0.23 | B30: 1.592103524 | C30: 0.6597268984
A31: 0.24 | B31: 1.661325417 | C31: 0.6766386766
A32: 0.25 | B32: 1.730547309 | C32: 0.6925694548
A33: 0.26 | B33: 1.799769201 | C33: 0.707519233
A34: 0.27 | B34: 1.868991094 | C34: 0.7214880111
A35: 0.28 | B35: 1.938212986 | C35: 0.7344757893
A36: 0.29 | B36: 2.007434879 | C36: 0.7464825675
A37: 0.3 | B37: 2.076656771 | C37: 0.7575083457
A38: 0.31 | B38: 2.145878663 | C38: 0.7675531239
A39: 0.32 | B39: 2.215100556 | C39: 0.7766169021
A40: 0.33 | B40: 2.284322448 | C40: 0.7846996803
A41: 0.34 | B41: 2.35354434 | C41: 0.7918014585
A42: 0.35 | B42: 2.422766233 | C42: 0.7979222367
A43: 0.36 | B43: 2.491988125 | C43: 0.8030620149
A44: 0.37 | B44: 2.561210018 | C44: 0.8072207931
A45: 0.38 | B45: 2.63043191 | C45: 0.8103985712
A46: 0.39 | B46: 2.699653802 | C46: 0.8125953494
A47: 0.4 | B47: 2.768875695 | C47: 0.8138111276
A48: 0.41 | B48: 2.838097587 | C48: 0.8140459058
A49: 0.42 | B49: 2.907319479 | C49: 0.813299684
A50: 0.43 | B50: 2.976541372 | C50: 0.8115724622
A51: 0.44 | B51: 3.045763264 | C51: 0.8088642404
A52: 0.45 | B52: 3.114985156 | C52: 0.8051750186
A53: 0.46 | B53: 3.184207049 | C53: 0.8005047968
A54: 0.47 | B54: 3.253428941 | C54: 0.794853575
A55: 0.48 | B55: 3.322650834 | C55: 0.7882213532
A56: 0.49 | B56: 3.391872726 | C56: 0.7806081313
A57: 0.5 | B57: 3.461094618 | C57: 0.7720139095
A58: 0.51 | B58: 3.530316511 | C58: 0.7624386877
A59: 0.52 | B59: 3.599538403 | C59: 0.7518824659
A60: 0.53 | B60: 3.668760295 | C60: 0.7403452441
A61: 0.54 | B61: 3.737982188 | C61: 0.7278270223
A62: 0.55 | B62: 3.80720408 | C62: 0.7143278005
A63: 0.56 | B63: 3.876425972 | C63: 0.6998475787
A64: 0.57 | B64: 3.945647865 | C64: 0.6843863569
A65: 0.58 | B65: 4.014869757 | C65: 0.6679441351
A66: 0.59 | B66: 4.08409165 | C66: 0.6505209132
A67: 0.6 | B67: 4.153313542 | C67: 0.6321166914
A68: 0.61 | B68: 4.222535434 | C68: 0.6127314696
A69: 0.62 | B69: 4.291757327 | C69: 0.5923652478
A70: 0.63 | B70: 4.360979219 | C70: 0.571018026
A71: 0.64 | B71: 4.430201111 | C71: =IF(-0.5*g*A71^2+v_y0*A71>0,-0.5*g*A71^2+v_y0*A71,0) -> 0.5486898042
A72: =A71+dt -> 0.65 | B72: =IF((-0.5*g*A72^2+v_y0*A72)>0,v_x*A72,x_max) -> 4.499423004 | C72: 0.5253805824
A73: 0.66 | B73: 4.568644896 | C73: 0.5010903606
A74: 0.67 | B74: 4.637866788 | C74: 0.4758191388
A75: 0.68 | B75: 4.707088681 | C75: 0.449566917
A76: 0.69 | B76: 4.776310573 | C76: 0.4223336952
A77: 0.7 | B77: 4.845532466 | C77: 0.3941194733
A78: 0.71 | B78: 4.914754358 | C78: 0.3649242515
A79: 0.72 | B79: 4.98397625 | C79: 0.3347480297
A80: 0.73 | B80: 5.053198143 | C80: 0.3035908079
A81: 0.74 | B81: 5.122420035 | C81: 0.2714525861
A82: 0.75 | B82: 5.191641927 | C82: 0.2383333643
A83: 0.76 | B83: 5.26086382 | C83: 0.2042331425
A84: 0.77 | B84: 5.330085712 | C84: 0.1691519207
A85: 0.78 | B85: 5.399307604 | C85: 0.1330896989
A86: 0.79 | B86: 5.468529497 | C86: 0.09604647706
A87: 0.8 | B87: 5.537751389 | C87: 0.05802225525
A88: 0.81 | B88: 5.606973282 | C88: 0.01901703344
A89: 0.82 | B89: 5.640106392 | C89: 0
A90: 0.83 | B90: 5.640106392 | C90: 0
A91: 0.84 | B91: 5.640106392 | C91: 0
A92: 0.85 | B92: 5.640106392 | C92: 0
A93: 0.86 | B93: 5.640106392 | C93: 0
A94: 0.87 | B94: 5.640106392 | C94: 0
A95: 0.88 | B95: 5.640106392 | C95: 0
A96: 0.89 | B96: 5.640106392 | C96: 0
A97: 0.9 | B97: 5.640106392 | C97: 0
A98: 0.91 | B98: 5.640106392 | C98: 0
A99: 0.92 | B99: 5.640106392 | C99: 0
A100: 0.93 | B100: 5.640106392 | C100: 0
A101: 0.94 | B101: 5.640106392 | C101: 0
A102: 0.95 | B102: 5.640106392 | C102: 0
A103: 0.96 | B103: 5.640106392 | C103: 0
A104: 0.97 | B104: 5.640106392 | C104: 0
A105: 0.98 | B105: 5.640106392 | C105: 0
A106: 0.99 | B106: 5.640106392 | C106: 0
A107: 1 | B107: 5.640106392 | C107: 0
A108: 1.01 | B108: 5.640106392 | C108: 0
A109: 1.02 | B109: 5.640106392 | C109: 0
A110: 1.03 | B110: 5.640106392 | C110: 0
A111: 1.04 | B111: 5.640106392 | C111: 0
A112: 1.05 | B112: 5.640106392 | C112: 0
A113: 1.06 | B113: 5.640106392 | C113: 0
A114: 1.07 | B114: 5.640106392 | C114: 0
A115: 1.08 | B115: 5.640106392 | C115: 0
A116: 1.09 | B116: 5.640106392 | C116: 0
A117: 1.1 | B117: 5.640106392 | C117: 0
A118: 1.11 | B118: 5.640106392 | C118: 0
A119: 1.12 | B119: 5.640106392 | C119: 0
A120: 1.13 | B120: 5.640106392 | C120: 0
A121: 1.14 | B121: 5.640106392 | C121: 0
A122: 1.15 | B122: 5.640106392 | C122: 0
A123: 1.16 | B123: 5.640106392 | C123: 0
A124: 1.17 | B124: 5.640106392 | C124: 0
A125: 1.18 | B125: 5.640106392 | C125: 0
A126: 1.19 | B126: 5.640106392 | C126: 0
A127: 1.2 | B127: 5.640106392 | C127: 0
A128: 1.21 | B128: 5.640106392 | C128: 0
A129: 1.22 | B129: 5.640106392 | C129: 0
A130: 1.23 | B130: 5.640106392 | C130: 0
A131: 1.24 | B131: 5.640106392 | C131: 0
A132: 1.25 | B132: 5.640106392 | C132: 0
A133: 1.26 | B133: 5.640106392 | C133: 0
A134: 1.27 | B134: 5.640106392 | C134: 0
A135: 1.28 | B135: 5.640106392 | C135: =IF(-0.5*g*A135^2+v_y0*A135>0,-0.5*g*A135^2+v_y0*A135,0) -> 0
A136: =A135+dt -> 1.29 | B136: =IF((-0.5*g*A136^2+v_y0*A136)>0,v_x*A136,x_max) -> 5.640106392 | C136: 0
A137: 1.3 | B137: 5.640106392 | C137: 0
A138: 1.31 | B138: 5.640106392 | C138: 0
A139: 1.32 | B139: 5.640106392 | C139: 0
A140: 1.33 | B140: 5.640106392 | C140: 0
A141: 1.34 | B141: 5.640106392 | C141: 0
A142: 1.35 | B142: 5.640106392 | C142: 0
A143: 1.36 | B143: 5.640106392 | C143: 0
A144: 1.37 | B144: 5.640106392 | C144: 0
A145: 1.38 | B145: 5.640106392 | C145: 0
A146: 1.39 | B146: 5.640106392 | C146: 0
A147: 1.4 | B147: 5.640106392 | C147: 0
A148: 1.41 | B148: 5.640106392 | C148: 0
A149: 1.42 | B149: 5.640106392 | C149: 0
A150: 1.43 | B150: 5.640106392 | C150: 0
A151: 1.44 | B151: 5.640106392 | C151: 0
A152: 1.45 | B152: 5.640106392 | C152: 0
A153: 1.46 | B153: 5.640106392 | C153: 0
A154: 1.47 | B154: 5.640106392 | C154: 0
A155: 1.48 | B155: 5.640106392 | C155: 0
A156: 1.49 | B156: 5.640106392 | C156: 0
A157: 1.5 | B157: 5.640106392 | C157: 0
A158: 1.51 | B158: 5.640106392 | C158: 0
A159: 1.52 | B159: 5.640106392 | C159: 0
A160: 1.53 | B160: 5.640106392 | C160: 0
A161: 1.54 | B161: 5.640106392 | C161: 0
A162: 1.55 | B162: 5.640106392 | C162: 0
A163: 1.56 | B163: 5.640106392 | C163: 0
A164: 1.57 | B164: 5.640106392 | C164: 0
A165: 1.58 | B165: 5.640106392 | C165: 0
A166: 1.59 | B166: 5.640106392 | C166: 0
A167: 1.6 | B167: 5.640106392 | C167: 0
A168: 1.61 | B168: 5.640106392 | C168: 0
A169: 1.62 | B169: 5.640106392 | C169: 0
A170: 1.63 | B170: 5.640106392 | C170: 0
A171: 1.64 | B171: 5.640106392 | C171: 0
A172: 1.65 | B172: 5.640106392 | C172: 0
A173: 1.66 | B173: 5.640106392 | C173: 0
A174: 1.67 | B174: 5.640106392 | C174: 0
A175: 1.68 | B175: 5.640106392 | C175: 0
A176: 1.69 | B176: 5.640106392 | C176: 0
A177: 1.7 | B177: 5.640106392 | C177: 0
A178: 1.71 | B178: 5.640106392 | C178: 0
A179: 1.72 | B179: 5.640106392 | C179: 0
A180: 1.73 | B180: 5.640106392 | C180: 0
A181: 1.74 | B181: 5.640106392 | C181: 0
A182: 1.75 | B182: 5.640106392 | C182: 0
A183: 1.76 | B183: 5.640106392 | C183: 0
A184: 1.77 | B184: 5.640106392 | C184: 0
A185: 1.78 | B185: 5.640106392 | C185: 0
A186: 1.79 | B186: 5.640106392 | C186: 0
A187: 1.8 | B187: 5.640106392 | C187: 0
A188: 1.81 | B188: 5.640106392 | C188: 0
A189: 1.82 | B189: 5.640106392 | C189: 0
A190: 1.83 | B190: 5.640106392 | C190: 0
A191: 1.84 | B191: 5.640106392 | C191: 0
A192: 1.85 | B192: 5.640106392 | C192: 0
A193: 1.86 | B193: 5.640106392 | C193: 0
A194: 1.87 | B194: 5.640106392 | C194: 0
A195: 1.88 | B195: 5.640106392 | C195: 0
A196: 1.89 | B196: 5.640106392 | C196: 0
A197: 1.9 | B197: 5.640106392 | C197: 0
A198: 1.91 | B198: 5.640106392 | C198: 0
A199: 1.92 | B199: 5.640106392 | C199: =IF(-0.5*g*A199^2+v_y0*A199>0,-0.5*g*A199^2+v_y0*A199,0) -> 0
A200: =A199+dt -> 1.93 | B200: =IF((-0.5*g*A200^2+v_y0*A200)>0,v_x*A200,x_max) -> 5.640106392 | C200: 0
... 807 more rows

Sheet versie 2
A1: t0 = | B1: 0 | D1: random = | E1: =RAND() -> 0.07520215034 | F1: ampl | G1: v_x = | H1: =v_max*COS(E6) -> 6.775540579 | J1: t_max = | K1: =2*v_y0/g -> 0.7975250106 | M1: v_max | N1: v2 | O1: x_max
A2: dt = | B2: 0.01 | D2: kopie = | E2: 0.07473733455 | F2: 150 | G2: v_y0 = | H2: =v_max*SIN(E6) -> 3.911860177 | J2: x_max = | K2: =v_max^2*SIN(2*E6)/g -> 5.403663072 | M2: =v_max -> 7.823720354 | N2: =M2^2 -> 61.21060018 | O2: =K2 -> 5.403663072 | T2: r.c. = | U2: 0.0883
A3: g = | B3: 9.81 | D3: Energie = | E3: 0 | F3: offset | J3: y_max = | K3: =0.5*v_y0^2/g -> 0.7799515824 | T3: Energie = | U3: 68.66856
D4: 2E/m = | E4: 61.21060018 | F4: 50 | M4: v_max | N4: v2 | O4: x_max | T4: Afstand = | U4: =U3*U2 -> 6.063433848
D5: v_max = | E5: =SQRT(E4) -> 7.823720354 | H5: schfblk = | I5: 133
A6: tijd | B6: x | C6: y | D6: hoek = | E6: =RADIANS(E7) -> 0.5235987756 | F6: rad | H6: x_bakje = | I6: =I5/10 -> 13.3 | L6: tijd | S6: -0.5 | U6: =IF(ABS(V10-I6)<0.2,"raak","mis") -> mis
A7: =t0 -> 0 | B7: =IF(-0.5*g*A7^2+v_y0*A7>0,v_x*A7,0) -> 0 | C7: =IF(-0.5*g*A7^2+v_y0*A7>0,-0.5*g*A7^2+v_y0*A7,0) -> 0 | E7: 30 | F7: º | H7: y_bakje = | I7: 0 | R7: kopie dt | S7: =dt -> 0.01
A8: =A7+dt -> 0.01 | B8: =IF((-0.5*g*A8^2+v_y0*A8)>0,v_x*A8,x_max) -> 0.06775540579 | C8: 0.03862810177 | H8: bakje tekenen : | R8: kopie g | S8: =g -> 9.81
A9: 0.02 | B9: 0.1355108116 | C9: 0.07627520354 | H9: =H11-0.4 -> 12.9 | I9: 0.1 | R9: kopie v_x | S9: =v_x -> 6.775540579 | U9: tijd | V9: X | W9: Y | X9: label
A10: 0.03 | B10: 0.2032662174 | C10: 0.1129413053 | H10: =H11-0.2 -> 13.1 | I10: 0 | R10: kopie v_y0 | S10: =v_y0 -> 3.911860177 | U10: 1.166666667 | V10: 11.25693111 | W10: 0.1 | X10: X
A11: 0.04 | B11: 0.2710216232 | C11: 0.1486264071 | H11: =I6 -> 13.3 | I11: 0
A12: 0.05 | B12: 0.3387770289 | C12: 0.1833305089 | H12: =H11+0.2 -> 13.5 | I12: 0
A13: 0.06 | B13: 0.4065324347 | C13: 0.2170536106 | H13: =H11+0.4 -> 13.7 | I13: 0.1
A14: 0.07 | B14: 0.4742878405 | C14: 0.2497957124
A15: 0.08 | B15: 0.5420432463 | C15: 0.2815568142
A16: 0.09 | B16: 0.6097986521 | C16: 0.3123369159
A17: 0.1 | B17: 0.6775540579 | C17: 0.3421360177
A18: 0.11 | B18: 0.7453094637 | C18: 0.3709541195
A19: 0.12 | B19: 0.8130648695 | C19: 0.3987912213
A20: 0.13 | B20: 0.8808202753 | C20: 0.425647323
A21: 0.14 | B21: 0.9485756811 | C21: 0.4515224248
A22: 0.15 | B22: 1.016331087 | C22: 0.4764165266
A23: 0.16 | B23: 1.084086493 | C23: 0.5003296283
A24: 0.17 | B24: 1.151841898 | C24: 0.5232617301
A25: 0.18 | B25: 1.219597304 | C25: 0.5452128319
A26: 0.19 | B26: 1.28735271 | C26: 0.5661829337
A27: 0.2 | B27: 1.355108116 | C27: 0.5861720354
A28: 0.21 | B28: 1.422863522 | C28: 0.6051801372
A29: 0.22 | B29: 1.490618927 | C29: 0.623207239
A30: 0.23 | B30: 1.558374333 | C30: 0.6402533408
A31: 0.24 | B31: 1.626129739 | C31: 0.6563184425
A32: 0.25 | B32: 1.693885145 | C32: 0.6714025443
A33: 0.26 | B33: 1.761640551 | C33: 0.6855056461
A34: 0.27 | B34: 1.829395956 | C34: 0.6986277478
A35: 0.28 | B35: 1.897151362 | C35: 0.7107688496
A36: 0.29 | B36: 1.964906768 | C36: 0.7219289514
A37: 0.3 | B37: 2.032662174 | C37: 0.7321080532
A38: 0.31 | B38: 2.100417579 | C38: 0.7413061549
A39: 0.32 | B39: 2.168172985 | C39: 0.7495232567
A40: 0.33 | B40: 2.235928391 | C40: 0.7567593585
A41: 0.34 | B41: 2.303683797 | C41: 0.7630144602
A42: 0.35 | B42: 2.371439203 | C42: 0.768288562
A43: 0.36 | B43: 2.439194608 | C43: 0.7725816638
A44: 0.37 | B44: 2.506950014 | C44: 0.7758937656
A45: 0.38 | B45: 2.57470542 | C45: 0.7782248673
A46: 0.39 | B46: 2.642460826 | C46: 0.7795749691
A47: 0.4 | B47: 2.710216232 | C47: 0.7799440709
A48: 0.41 | B48: 2.777971637 | C48: 0.7793321726
A49: 0.42 | B49: 2.845727043 | C49: 0.7777392744
A50: 0.43 | B50: 2.913482449 | C50: 0.7751653762
A51: 0.44 | B51: 2.981237855 | C51: 0.771610478
A52: 0.45 | B52: 3.048993261 | C52: 0.7670745797
A53: 0.46 | B53: 3.116748666 | C53: 0.7615576815
A54: 0.47 | B54: 3.184504072 | C54: 0.7550597833
A55: 0.48 | B55: 3.252259478 | C55: 0.747580885
A56: 0.49 | B56: 3.320014884 | C56: 0.7391209868
A57: 0.5 | B57: 3.387770289 | C57: 0.7296800886
A58: 0.51 | B58: 3.455525695 | C58: 0.7192581904
A59: 0.52 | B59: 3.523281101 | C59: 0.7078552921
A60: 0.53 | B60: 3.591036507 | C60: 0.6954713939
A61: 0.54 | B61: 3.658791913 | C61: 0.6821064957
A62: 0.55 | B62: 3.726547318 | C62: 0.6677605974
A63: 0.56 | B63: 3.794302724 | C63: 0.6524336992
A64: 0.57 | B64: 3.86205813 | C64: 0.636125801
A65: 0.58 | B65: 3.929813536 | C65: 0.6188369028
A66: 0.59 | B66: 3.997568942 | C66: 0.6005670045
A67: 0.6 | B67: 4.065324347 | C67: 0.5813161063
A68: 0.61 | B68: 4.133079753 | C68: 0.5610842081
A69: 0.62 | B69: 4.200835159 | C69: 0.5398713098
A70: 0.63 | B70: 4.268590565 | C70: 0.5176774116
A71: 0.64 | B71: 4.336345971 | C71: =IF(-0.5*g*A71^2+v_y0*A71>0,-0.5*g*A71^2+v_y0*A71,0) -> 0.4945025134
A72: =A71+dt -> 0.65 | B72: =IF((-0.5*g*A72^2+v_y0*A72)>0,v_x*A72,x_max) -> 4.404101376 | C72: 0.4703466152
A73: 0.66 | B73: 4.471856782 | C73: 0.4452097169
A74: 0.67 | B74: 4.539612188 | C74: 0.4190918187
A75: 0.68 | B75: 4.607367594 | C75: 0.3919929205
A76: 0.69 | B76: 4.675122999 | C76: 0.3639130223
A77: 0.7 | B77: 4.742878405 | C77: 0.334852124
A78: 0.71 | B78: 4.810633811 | C78: 0.3048102258
A79: 0.72 | B79: 4.878389217 | C79: 0.2737873276
A80: 0.73 | B80: 4.946144623 | C80: 0.2417834293
A81: 0.74 | B81: 5.013900028 | C81: 0.2087985311
A82: 0.75 | B82: 5.081655434 | C82: 0.1748326329
A83: 0.76 | B83: 5.14941084 | C83: 0.1398857347
A84: 0.77 | B84: 5.217166246 | C84: 0.1039578364
A85: 0.78 | B85: 5.284921652 | C85: 0.0670489382
A86: 0.79 | B86: 5.352677057 | C86: 0.02915903997
A87: 0.8 | B87: 5.403663072 | C87: 0
A88: 0.81 | B88: 5.403663072 | C88: 0
A89: 0.82 | B89: 5.403663072 | C89: 0
A90: 0.83 | B90: 5.403663072 | C90: 0
A91: 0.84 | B91: 5.403663072 | C91: 0
A92: 0.85 | B92: 5.403663072 | C92: 0
A93: 0.86 | B93: 5.403663072 | C93: 0
A94: 0.87 | B94: 5.403663072 | C94: 0
A95: 0.88 | B95: 5.403663072 | C95: 0
A96: 0.89 | B96: 5.403663072 | C96: 0
A97: 0.9 | B97: 5.403663072 | C97: 0
A98: 0.91 | B98: 5.403663072 | C98: 0
A99: 0.92 | B99: 5.403663072 | C99: 0
A100: 0.93 | B100: 5.403663072 | C100: 0
A101: 0.94 | B101: 5.403663072 | C101: 0
A102: 0.95 | B102: 5.403663072 | C102: 0
A103: 0.96 | B103: 5.403663072 | C103: 0
A104: 0.97 | B104: 5.403663072 | C104: 0
A105: 0.98 | B105: 5.403663072 | C105: 0
A106: 0.99 | B106: 5.403663072 | C106: 0
A107: 1 | B107: 5.403663072 | C107: 0
A108: 1.01 | B108: 5.403663072 | C108: 0
A109: 1.02 | B109: 5.403663072 | C109: 0
A110: 1.03 | B110: 5.403663072 | C110: 0
A111: 1.04 | B111: 5.403663072 | C111: 0
A112: 1.05 | B112: 5.403663072 | C112: 0
A113: 1.06 | B113: 5.403663072 | C113: 0
A114: 1.07 | B114: 5.403663072 | C114: 0
A115: 1.08 | B115: 5.403663072 | C115: 0
A116: 1.09 | B116: 5.403663072 | C116: 0
A117: 1.1 | B117: 5.403663072 | C117: 0
A118: 1.11 | B118: 5.403663072 | C118: 0
A119: 1.12 | B119: 5.403663072 | C119: 0
A120: 1.13 | B120: 5.403663072 | C120: 0
A121: 1.14 | B121: 5.403663072 | C121: 0
A122: 1.15 | B122: 5.403663072 | C122: 0
A123: 1.16 | B123: 5.403663072 | C123: 0
A124: 1.17 | B124: 5.403663072 | C124: 0
A125: 1.18 | B125: 5.403663072 | C125: 0
A126: 1.19 | B126: 5.403663072 | C126: 0
A127: 1.2 | B127: 5.403663072 | C127: 0
A128: 1.21 | B128: 5.403663072 | C128: 0
A129: 1.22 | B129: 5.403663072 | C129: 0
A130: 1.23 | B130: 5.403663072 | C130: 0
A131: 1.24 | B131: 5.403663072 | C131: 0
A132: 1.25 | B132: 5.403663072 | C132: 0
A133: 1.26 | B133: 5.403663072 | C133: 0
A134: 1.27 | B134: 5.403663072 | C134: 0
A135: 1.28 | B135: 5.403663072 | C135: =IF(-0.5*g*A135^2+v_y0*A135>0,-0.5*g*A135^2+v_y0*A135,0) -> 0
A136: =A135+dt -> 1.29 | B136: =IF((-0.5*g*A136^2+v_y0*A136)>0,v_x*A136,x_max) -> 5.403663072 | C136: 0
A137: 1.3 | B137: 5.403663072 | C137: 0
A138: 1.31 | B138: 5.403663072 | C138: 0
A139: 1.32 | B139: 5.403663072 | C139: 0
A140: 1.33 | B140: 5.403663072 | C140: 0
A141: 1.34 | B141: 5.403663072 | C141: 0
A142: 1.35 | B142: 5.403663072 | C142: 0
A143: 1.36 | B143: 5.403663072 | C143: 0
A144: 1.37 | B144: 5.403663072 | C144: 0
A145: 1.38 | B145: 5.403663072 | C145: 0
A146: 1.39 | B146: 5.403663072 | C146: 0
A147: 1.4 | B147: 5.403663072 | C147: 0
A148: 1.41 | B148: 5.403663072 | C148: 0
A149: 1.42 | B149: 5.403663072 | C149: 0
A150: 1.43 | B150: 5.403663072 | C150: 0
A151: 1.44 | B151: 5.403663072 | C151: 0
A152: 1.45 | B152: 5.403663072 | C152: 0
A153: 1.46 | B153: 5.403663072 | C153: 0
A154: 1.47 | B154: 5.403663072 | C154: 0
A155: 1.48 | B155: 5.403663072 | C155: 0
A156: 1.49 | B156: 5.403663072 | C156: 0
A157: 1.5 | B157: 5.403663072 | C157: 0
A158: 1.51 | B158: 5.403663072 | C158: 0
A159: 1.52 | B159: 5.403663072 | C159: 0
A160: 1.53 | B160: 5.403663072 | C160: 0
A161: 1.54 | B161: 5.403663072 | C161: 0
A162: 1.55 | B162: 5.403663072 | C162: 0
A163: 1.56 | B163: 5.403663072 | C163: 0
A164: 1.57 | B164: 5.403663072 | C164: 0
A165: 1.58 | B165: 5.403663072 | C165: 0
A166: 1.59 | B166: 5.403663072 | C166: 0
A167: 1.6 | B167: 5.403663072 | C167: 0
A168: 1.61 | B168: 5.403663072 | C168: 0
A169: 1.62 | B169: 5.403663072 | C169: 0
A170: 1.63 | B170: 5.403663072 | C170: 0
A171: 1.64 | B171: 5.403663072 | C171: 0
A172: 1.65 | B172: 5.403663072 | C172: 0
A173: 1.66 | B173: 5.403663072 | C173: 0
A174: 1.67 | B174: 5.403663072 | C174: 0
A175: 1.68 | B175: 5.403663072 | C175: 0
A176: 1.69 | B176: 5.403663072 | C176: 0
A177: 1.7 | B177: 5.403663072 | C177: 0
A178: 1.71 | B178: 5.403663072 | C178: 0
A179: 1.72 | B179: 5.403663072 | C179: 0
A180: 1.73 | B180: 5.403663072 | C180: 0
A181: 1.74 | B181: 5.403663072 | C181: 0
A182: 1.75 | B182: 5.403663072 | C182: 0
A183: 1.76 | B183: 5.403663072 | C183: 0
A184: 1.77 | B184: 5.403663072 | C184: 0
A185: 1.78 | B185: 5.403663072 | C185: 0
A186: 1.79 | B186: 5.403663072 | C186: 0
A187: 1.8 | B187: 5.403663072 | C187: 0
A188: 1.81 | B188: 5.403663072 | C188: 0
A189: 1.82 | B189: 5.403663072 | C189: 0
A190: 1.83 | B190: 5.403663072 | C190: 0
A191: 1.84 | B191: 5.403663072 | C191: 0
A192: 1.85 | B192: 5.403663072 | C192: 0
A193: 1.86 | B193: 5.403663072 | C193: 0
A194: 1.87 | B194: 5.403663072 | C194: 0
A195: 1.88 | B195: 5.403663072 | C195: 0
A196: 1.89 | B196: 5.403663072 | C196: 0
A197: 1.9 | B197: 5.403663072 | C197: 0
A198: 1.91 | B198: 5.403663072 | C198: 0
A199: 1.92 | B199: 5.403663072 | C199: =IF(-0.5*g*A199^2+v_y0*A199>0,-0.5*g*A199^2+v_y0*A199,0) -> 0
A200: =A199+dt -> 1.93 | B200: =IF((-0.5*g*A200^2+v_y0*A200)>0,v_x*A200,x_max) -> 5.403663072 | C200: 0
... 807 more rows

Sheet versie 2 game layout
U1: t0 = | V1: 0 | X1: random = | Y1: =RAND() -> 0.2188072889 | Z1: ampl | AB1: v_x = | AC1: =v_max*COS(Y6) -> 10.95107535 | AD1: t_max = | AE1: =2*v_y0/g -> 1.474946703 | AG1: v_max | AH1: v2 | AI1: x_max | AN1: klad om te rekenen
K2: Kladblok | U2: dt = | V2: 0.01 | X2: kopie = | Y2: 0.8151045661 | Z2: 150 | AB2: v_y0 = | AC2: =v_max*SIN(Y6) -> 7.234613576 | AD2: x_max = | AE2: =v_max^2*SIN(2*Y6)/g -> 16.15225248 | AG2: =v_max -> 13.12500228 | AH2: =AG2^2 -> 172.2656849 | AI2: =AE2 -> 16.15225248 | AN2: r.c. = | AO2: 0.0883
B3: opvangnet | F3: =Z12 -> 11.9 | U3: g = | V3: 9.81 | X3: Energie = | Y3: 0 | Z3: offset | AD3: y_max = | AE3: =0.5*v_y0^2/g -> 2.66766736 | AN3: Energie = | AO3: 163.6
L4: y = | M4: ax + b | X4: 2E/m = | Y4: 172.2656849 | Z4: 50 | AG4: v_max | AH4: v2 | AI4: x_max | AN4: Afstand = | AO4: =AO3*AO2 -> 14.44588
X5: v_max = | Y5: =SQRT(Y4) -> 13.12500228
K6: a = | L6: richtingcoëfficiënt = | N6: 0.0893 | U6: Baan van kogel | X6: hoek = | Y6: =RADIANS(Y7) -> 0.5838120175 | Z6: rad | AG6: 13.12500228 | AH6: 172.2656849 | AI6: 16.15225248 | BW6: -0.5 | BY6: =IF(ABS(AP10-Z12)<0.2,"raak","mis") -> mis
E7: =Y3 -> 0 | F7: energy level | L7: x = | M7: energie = | N7: 134.22 | U7: tijd | V7: x | W7: y | Y7: 33.44996463 | Z7: º | AL7: kopie dt | AM7: =dt -> 0.01
L8: y = | M8: afstand = | N8: =N6*N7 -> 11.985846 | U8: =t0 -> 0 | V8: =IF(-0.5*g*U8^2+v_y0*U8>0,v_x*U8,0) -> 0 | W8: =IF((-0.5*g*U8^2+v_y0*U8)>0,-0.5*g*U8^2+v_y0*U8,0) -> 0 | X8: random = | Y8: =RAND() -> 0.575122471 | AL8: kopie g | AM8: =g -> 9.81
U9: =U8+dt -> 0.01 | V9: =IF(-0.5*g*U9^2+v_y0*U9>0,v_x*U9,x_max) -> 0.1095107535 | W9: 0.07185563576 | X9: kopie = | Y9: 0.3362491158 | AL9: kopie v_x | AM9: =v_x -> 10.95107535 | AO9: tijd | AP9: X | AQ9: Y | AR9: label
U10: 0.02 | V10: 0.219021507 | W10: 0.1427302715 | Y10: Positie opvangnet | AL10: kopie v_y0 | AM10: =v_y0 -> 7.234613576 | AO10: 1.433333333 | AP10: 17.3221386 | AQ10: 0.2 | AR10: X
U11: 0.03 | V11: 0.3285322605 | W11: 0.2126239073 | Y11: schfblk = | Z11: 119
U12: 0.04 | V12: 0.438043014 | W12: 0.281536543 | Y12: x_bakje = | Z12: =Z11/10 -> 11.9
U13: 0.05 | V13: 0.5475537675 | W13: 0.3494681788 | Y13: y_bakje = | Z13: 0
U14: 0.06 | V14: 0.657064521 | W14: 0.4164188146 | Y14: bakje tekenen :
U15: 0.07 | V15: 0.7665752745 | W15: 0.4823884503 | Y15: =Y17-0.4 -> 11.5 | Z15: 0.15
U16: 0.08 | V16: 0.876086028 | W16: 0.5473770861 | Y16: =Y17-0.2 -> 11.7 | Z16: 0.05
C17: -0.5 | E17: tijd | F17: x | G17: y | U17: 0.09 | V17: 0.9855967815 | W17: 0.6113847219 | Y17: =Z12 -> 11.9 | Z17: 0.05
B18: kopie dt | C18: =dt -> 0.01 | E18: 1.5 | F18: 16.22661285 | G18: 0.2 | H18: X | U18: 0.1 | V18: 1.095107535 | W18: 0.6744113576 | Y18: =Y17+0.2 -> 12.1 | Z18: 0.05
B19: kopie g | C19: =g -> 9.81 | U19: 0.11 | V19: 1.204618289 | W19: 0.7364569934 | Y19: =Y17+0.4 -> 12.3 | Z19: 0.15
B20: kopie v_x | C20: =v_x -> 10.95107535 | U20: 0.12 | V20: 1.314129042 | W20: 0.7975216291
B21: kopie v_y0 | C21: =v_y0 -> 7.234613576 | U21: 0.13 | V21: 1.423639796 | W21: 0.8576052649
U22: 0.14 | V22: 1.533150549 | W22: 0.9167079007
U23: 0.15 | V23: 1.642661303 | W23: 0.9748295364
U24: 0.16 | V24: 1.752172056 | W24: 1.031970172
U25: 0.17 | V25: 1.86168281 | W25: 1.088129808
U26: 0.18 | V26: 1.971193563 | W26: 1.143308444
U27: 0.19 | V27: 2.080704317 | W27: 1.197506079
U28: 0.2 | V28: 2.19021507 | W28: 1.250722715
U29: 0.21 | V29: 2.299725824 | W29: 1.302958351
U30: 0.22 | V30: 2.409236577 | W30: 1.354212987
U31: 0.23 | V31: 2.518747331 | W31: 1.404486623
U32: 0.24 | V32: 2.628258084 | W32: 1.453779258
U33: 0.25 | V33: 2.737768838 | W33: 1.502090894
U34: 0.26 | V34: 2.847279591 | W34: 1.54942153
U35: 0.27 | V35: 2.956790345 | W35: 1.595771166
U36: 0.28 | V36: 3.066301098 | W36: 1.641139801
U37: 0.29 | V37: 3.175811852 | W37: 1.685527437
U38: 0.3 | V38: 3.285322605 | W38: 1.728934073
U39: 0.31 | V39: 3.394833359 | W39: 1.771359709
U40: 0.32 | V40: 3.504344112 | W40: 1.812804344
U41: 0.33 | V41: 3.613854866 | W41: 1.85326798
U42: 0.34 | V42: 3.723365619 | W42: 1.892750616
U43: 0.35 | V43: 3.832876373 | W43: 1.931252252
U44: 0.36 | V44: 3.942387126 | W44: 1.968772887
U45: 0.37 | V45: 4.05189788 | W45: 2.005312523
U46: 0.38 | V46: 4.161408633 | W46: 2.040871159
U47: 0.39 | V47: 4.270919387 | W47: 2.075448795
U48: 0.4 | V48: 4.38043014 | W48: 2.10904543
U49: 0.41 | V49: 4.489940894 | W49: 2.141661066
U50: 0.42 | V50: 4.599451647 | W50: 2.173295702
U51: 0.43 | V51: 4.708962401 | W51: 2.203949338
U52: 0.44 | V52: 4.818473154 | W52: 2.233621973
U53: 0.45 | V53: 4.927983908 | W53: 2.262313609
U54: 0.46 | V54: 5.037494661 | W54: 2.290024245
U55: 0.47 | V55: 5.147005415 | W55: 2.316753881
U56: 0.48 | V56: 5.256516168 | W56: 2.342502517
U57: 0.49 | V57: 5.366026922 | W57: 2.367270152
U58: 0.5 | V58: 5.475537675 | W58: 2.391056788
U59: 0.51 | V59: 5.585048429 | W59: 2.413862424
U60: 0.52 | V60: 5.694559182 | W60: 2.43568706
U61: 0.53 | V61: 5.804069936 | W61: 2.456530695
U62: 0.54 | V62: 5.913580689 | W62: 2.476393331
U63: 0.55 | V63: 6.023091443 | W63: 2.495274967
U64: 0.56 | V64: 6.132602196 | W64: 2.513175603
U65: 0.57 | V65: 6.24211295 | W65: 2.530095238
U66: 0.58 | V66: 6.351623703 | W66: 2.546033874
U67: 0.59 | V67: 6.461134457 | W67: 2.56099151
U68: 0.6 | V68: 6.57064521 | W68: 2.574968146
U69: 0.61 | V69: 6.680155964 | W69: 2.587963781
U70: 0.62 | V70: 6.789666717 | W70: 2.599978417
U71: 0.63 | V71: 6.899177471 | W71: 2.611012053
U72: 0.64 | V72: 7.008688224 | W72: =IF((-0.5*g*U72^2+v_y0*U72)>0,-0.5*g*U72^2+v_y0*U72,0) -> 2.621064689
U73: =U72+dt -> 0.65 | V73: =IF(-0.5*g*U73^2+v_y0*U73>0,v_x*U73,x_max) -> 7.118198978 | W73: 2.630136324
U74: 0.66 | V74: 7.227709731 | W74: 2.63822696
U75: 0.67 | V75: 7.337220485 | W75: 2.645336596
U76: 0.68 | V76: 7.446731238 | W76: 2.651465232
U77: 0.69 | V77: 7.556241992 | W77: 2.656612868
U78: 0.7 | V78: 7.665752745 | W78: 2.660779503
U79: 0.71 | V79: 7.775263499 | W79: 2.663965139
U80: 0.72 | V80: 7.884774252 | W80: 2.666169775
U81: 0.73 | V81: 7.994285006 | W81: 2.667393411
U82: 0.74 | V82: 8.103795759 | W82: 2.667636046
U83: 0.75 | V83: 8.213306513 | W83: 2.666897682
U84: 0.76 | V84: 8.322817266 | W84: 2.665178318
U85: 0.77 | V85: 8.43232802 | W85: 2.662477954
U86: 0.78 | V86: 8.541838773 | W86: 2.658796589
U87: 0.79 | V87: 8.651349527 | W87: 2.654134225
U88: 0.8 | V88: 8.76086028 | W88: 2.648490861
U89: 0.81 | V89: 8.870371034 | W89: 2.641866497
U90: 0.82 | V90: 8.979881787 | W90: 2.634261132
U91: 0.83 | V91: 9.089392541 | W91: 2.625674768
U92: 0.84 | V92: 9.198903294 | W92: 2.616107404
U93: 0.85 | V93: 9.308414048 | W93: 2.60555904
U94: 0.86 | V94: 9.417924801 | W94: 2.594029675
U95: 0.87 | V95: 9.527435555 | W95: 2.581519311
U96: 0.88 | V96: 9.636946308 | W96: 2.568027947
U97: 0.89 | V97: 9.746457062 | W97: 2.553555583
U98: 0.9 | V98: 9.855967815 | W98: 2.538102219
U99: 0.91 | V99: 9.965478569 | W99: 2.521667854
U100: 0.92 | V100: 10.07498932 | W100: 2.50425249
U101: 0.93 | V101: 10.18450008 | W101: 2.485856126
U102: 0.94 | V102: 10.29401083 | W102: 2.466478762
U103: 0.95 | V103: 10.40352158 | W103: 2.446120397
U104: 0.96 | V104: 10.51303234 | W104: 2.424781033
U105: 0.97 | V105: 10.62254309 | W105: 2.402460669
U106: 0.98 | V106: 10.73205384 | W106: 2.379159305
U107: 0.99 | V107: 10.8415646 | W107: 2.35487694
U108: 1 | V108: 10.95107535 | W108: 2.329613576
U109: 1.01 | V109: 11.0605861 | W109: 2.303369212
U110: 1.02 | V110: 11.17009686 | W110: 2.276143848
U111: 1.03 | V111: 11.27960761 | W111: 2.247937483
U112: 1.04 | V112: 11.38911836 | W112: 2.218750119
U113: 1.05 | V113: 11.49862912 | W113: 2.188581755
U114: 1.06 | V114: 11.60813987 | W114: 2.157432391
U115: 1.07 | V115: 11.71765062 | W115: 2.125302026
U116: 1.08 | V116: 11.82716138 | W116: 2.092190662
U117: 1.09 | V117: 11.93667213 | W117: 2.058098298
U118: 1.1 | V118: 12.04618289 | W118: 2.023024934
U119: 1.11 | V119: 12.15569364 | W119: 1.98697057
U120: 1.12 | V120: 12.26520439 | W120: 1.949935205
U121: 1.13 | V121: 12.37471515 | W121: 1.911918841
U122: 1.14 | V122: 12.4842259 | W122: 1.872921477
U123: 1.15 | V123: 12.59373665 | W123: 1.832943113
U124: 1.16 | V124: 12.70324741 | W124: 1.791983748
U125: 1.17 | V125: 12.81275816 | W125: 1.750043384
U126: 1.18 | V126: 12.92226891 | W126: 1.70712202
U127: 1.19 | V127: 13.03177967 | W127: 1.663219656
U128: 1.2 | V128: 13.14129042 | W128: 1.618336291
U129: 1.21 | V129: 13.25080117 | W129: 1.572471927
U130: 1.22 | V130: 13.36031193 | W130: 1.525626563
U131: 1.23 | V131: 13.46982268 | W131: 1.477800199
U132: 1.24 | V132: 13.57933343 | W132: 1.428992834
U133: 1.25 | V133: 13.68884419 | W133: 1.37920447
U134: 1.26 | V134: 13.79835494 | W134: 1.328435106
U135: 1.27 | V135: 13.90786569 | W135: 1.276684742
U136: 1.28 | V136: 14.01737645 | W136: =IF((-0.5*g*U136^2+v_y0*U136)>0,-0.5*g*U136^2+v_y0*U136,0) -> 1.223953377
U137: =U136+dt -> 1.29 | V137: =IF(-0.5*g*U137^2+v_y0*U137>0,v_x*U137,x_max) -> 14.1268872 | W137: 1.170241013
U138: 1.3 | V138: 14.23639796 | W138: 1.115547649
U139: 1.31 | V139: 14.34590871 | W139: 1.059873285
U140: 1.32 | V140: 14.45541946 | W140: 1.00321792
U141: 1.33 | V141: 14.56493022 | W141: 0.9455815563
U142: 1.34 | V142: 14.67444097 | W142: 0.886964192
U143: 1.35 | V143: 14.78395172 | W143: 0.8273658278
U144: 1.36 | V144: 14.89346248 | W144: 0.7667864635
U145: 1.37 | V145: 15.00297323 | W145: 0.7052260993
U146: 1.38 | V146: 15.11248398 | W146: 0.6426847351
U147: 1.39 | V147: 15.22199474 | W147: 0.5791623708
U148: 1.4 | V148: 15.33150549 | W148: 0.5146590066
U149: 1.41 | V149: 15.44101624 | W149: 0.4491746424
U150: 1.42 | V150: 15.550527 | W150: 0.3827092781
U151: 1.43 | V151: 15.66003775 | W151: 0.3152629139
U152: 1.44 | V152: 15.7695485 | W152: 0.2468355496
U153: 1.45 | V153: 15.87905926 | W153: 0.1774271854
U154: 1.46 | V154: 15.98857001 | W154: 0.1070378212
U155: 1.47 | V155: 16.09808076 | W155: 0.03566745692
U156: 1.48 | V156: 16.15225248 | W156: 0
U157: 1.49 | V157: 16.15225248 | W157: 0
U158: 1.5 | V158: 16.15225248 | W158: 0
U159: 1.51 | V159: 16.15225248 | W159: 0
U160: 1.52 | V160: 16.15225248 | W160: 0
U161: 1.53 | V161: 16.15225248 | W161: 0
U162: 1.54 | V162: 16.15225248 | W162: 0
U163: 1.55 | V163: 16.15225248 | W163: 0
U164: 1.56 | V164: 16.15225248 | W164: 0
U165: 1.57 | V165: 16.15225248 | W165: 0
U166: 1.58 | V166: 16.15225248 | W166: 0
U167: 1.59 | V167: 16.15225248 | W167: 0
U168: 1.6 | V168: 16.15225248 | W168: 0
U169: 1.61 | V169: 16.15225248 | W169: 0
U170: 1.62 | V170: 16.15225248 | W170: 0
U171: 1.63 | V171: 16.15225248 | W171: 0
U172: 1.64 | V172: 16.15225248 | W172: 0
U173: 1.65 | V173: 16.15225248 | W173: 0
U174: 1.66 | V174: 16.15225248 | W174: 0
U175: 1.67 | V175: 16.15225248 | W175: 0
U176: 1.68 | V176: 16.15225248 | W176: 0
U177: 1.69 | V177: 16.15225248 | W177: 0
U178: 1.7 | V178: 16.15225248 | W178: 0
U179: 1.71 | V179: 16.15225248 | W179: 0
U180: 1.72 | V180: 16.15225248 | W180: 0
U181: 1.73 | V181: 16.15225248 | W181: 0
U182: 1.74 | V182: 16.15225248 | W182: 0
U183: 1.75 | V183: 16.15225248 | W183: 0
U184: 1.76 | V184: 16.15225248 | W184: 0
U185: 1.77 | V185: 16.15225248 | W185: 0
U186: 1.78 | V186: 16.15225248 | W186: 0
U187: 1.79 | V187: 16.15225248 | W187: 0
U188: 1.8 | V188: 16.15225248 | W188: 0
U189: 1.81 | V189: 16.15225248 | W189: 0
U190: 1.82 | V190: 16.15225248 | W190: 0
U191: 1.83 | V191: 16.15225248 | W191: 0
U192: 1.84 | V192: 16.15225248 | W192: 0
U193: 1.85 | V193: 16.15225248 | W193: 0
U194: 1.86 | V194: 16.15225248 | W194: 0
U195: 1.87 | V195: 16.15225248 | W195: 0
U196: 1.88 | V196: 16.15225248 | W196: 0
U197: 1.89 | V197: 16.15225248 | W197: 0
U198: 1.9 | V198: 16.15225248 | W198: 0
U199: 1.91 | V199: 16.15225248 | W199: 0
U200: 1.92 | V200: 16.15225248 | W200: =IF((-0.5*g*U200^2+v_y0*U200)>0,-0.5*g*U200^2+v_y0*U200,0) -> 0
... 808 more rows
